bitfinex/quotes_SOLUSD_20260214
["timestamp","ask_amount","ask_price","bid_price","bid_amount"]
[1771103192535,39.59544765,88.394,88.35,2.37854733]
[1771103192536,0.45843856,88.389,88.35,2.37854733]
[1771103192745,0.45843856,88.389,88.344,15.82]
[1771103193039,2.87854733,88.39,88.344,15.82]
[1771103193040,5.36086188,88.388,88.344,15.82]
[1771103193339,0.45843856,88.379,88.34,2.87854733]
[1771103193537,5.36086188,88.395,88.371,0.47257375]
[1771103193745,5.36086188,88.395,88.301,243.48535121]
[1771103193746,0.45843856,88.404,88.38,2.87854733]
[1771103194034,53.89854733,88.43,88.35,2.87854733]
[1771103194035,11.30843157,88.43,88.391,0.47257375]
[1771103194239,28.26396795,88.452,88.41,2.87854733]
[1771103194442,11.30685459,88.442,88.41,2.87854733]
[1771103194737,5.9082141,88.488,88.395,0.47257375]
[1771103194738,11.30825163,88.431,88.395,0.47257375]
[1771103194939,11.30825163,88.431,88.4,2.87854733]
[1771103195145,11.30825163,88.431,88.401,0.47257375]
[1771103195446,11.30825163,88.431,88.41,2.87854733]
[1771103195639,11.30825163,88.431,88.401,0.47257375]
[1771103195839,11.30809467,88.433,88.41,2.87854733]
[1771103196042,11.30825163,88.431,88.41,2.87854733]
[1771103196225,0.45843856,88.431,88.397,0.47257375]
[1771103196538,0.45843856,88.429,88.4,2.87854733]
[1771103196938,0.45843856,88.429,88.4,7.17130101]
[1771103197332,0.45843856,88.429,88.391,0.47257375]
[1771103197720,5.36086188,88.458,88.363,39.60933874]
[1771103197721,0.2694892,88.546,88.394,0.47257375]
[1771103197923,0.2694892,88.546,88.363,220.68060158]
[1771103197924,7.17130101,88.48,88.442,0.47257375]
[1771103198123,7.17130101,88.46,88.422,0.47257375]
[1771103198534,7.17130101,88.46,88.411,0.47257375]
[1771103198730,11.30467222,88.459,88.412,0.47257375]
[1771103198932,7.17130101,88.45,88.412,0.47257375]
[1771103199145,6.67130101,88.45,88.412,0.47257375]
[1771103199533,39.56635277,88.459,88.412,0.47257375]
[1771103199736,0.45843856,88.458,88.412,0.47257375]
[1771103200038,0.45964485,88.449,88.412,0.47257375]
[1771103200457,0.45964485,88.447,88.412,0.47257375]
[1771103200644,0.45964485,88.483,88.421,0.4704648]
[1771103200844,0.45964485,88.469,88.431,0.4704648]
[1771103201446,0.45964485,88.449,88.413,0.4704648]
[1771103201743,7.17130101,88.42,88.394,0.4704648]
[1771103201948,7.17130101,88.44,88.394,0.4704648]
[1771103202150,7.17130101,88.44,88.388,11.31375299]
[1771103202151,7.17130101,88.44,88.401,0.4704648]
[1771103202637,50.96,88.543,88.431,0.4704648]
[1771103202845,50.96,88.543,88.451,0.4704648]
[1771103202846,28.24183094,88.522,88.451,0.4704648]
[1771103203033,56.47917951,88.529,88.432,48.14]
[1771103203034,7.17130101,88.5,88.461,0.47373501]
[1771103203626,0.46945388,88.499,88.461,0.47373501]
[1771103204349,0.46945388,88.489,88.451,0.47373501]
[1771103204846,7.17130101,88.48,88.441,0.47373501]
[1771103205047,7.17130101,88.45,88.437,80.18155944]
[1771103205430,5.36086188,88.478,88.437,80.18155944]
[1771103205630,7.17130101,88.45,88.437,19.07929157]
[1771103205838,7.17130101,88.45,88.421,0.5]
[1771103206237,61.52,88.472,88.421,0.5]
[1771103206426,7.17130101,88.45,88.421,0.5]
[1771103207041,18.47724444,88.45,88.421,0.5]
[1771103208156,11.30594343,88.45,88.421,0.5]
[1771103208657,11.30501947,88.457,88.423,0.5]
[1771103208845,7.17130101,88.45,88.423,0.5]
[1771103209053,7.16844869,88.45,88.423,0.5]
[1771103209243,11.30595032,88.449,88.423,0.5]
[1771103209441,61.5,88.469,88.43,7.16844869]
[1771103209646,7.16844869,88.48,88.431,0.5]
[1771103209843,11.30160595,88.483,88.431,0.5]
[1771103210044,7.16844869,88.47,88.431,0.5]
[1771103211952,7.16844869,88.46,88.431,0.5]
[1771103212652,39.56188042,88.469,88.431,0.5]
[1771103213457,11.3033944,88.469,88.433,0.5]
[1771103214261,11.30264759,88.475,88.441,0.5]
[1771103214837,7.16844869,88.47,88.441,0.5]
[1771103215037,7.16844869,88.46,88.425,11.30896017]
[1771103215336,61.58,88.467,88.43,7.16844869]
[1771103215539,61.58,88.467,88.431,0.5]
[1771103216263,61.58,88.467,88.42,7.16844869]
[1771103216264,11.30377772,88.466,88.433,0.5]
[1771103216448,7.16844869,88.46,88.433,0.5]
[1771103216649,11.30377772,88.466,88.433,0.5]
[1771103217662,11.30377772,88.466,88.426,11.30878165]
[1771103218036,11.7732316,88.466,88.426,11.30878165]
[1771103218245,0.46945388,88.465,88.426,11.30878165]
[1771103219459,11.30403327,88.464,88.427,0.47373501]
[1771103219764,11.30403327,88.464,88.429,0.47373501]
[1771103220353,11.30403327,88.464,88.417,0.47373501]
[1771103220354,0.46945388,88.449,88.417,0.47373501]
[1771103220758,39.56411646,88.464,88.421,0.47373501]
[1771103220759,40.03357034,88.464,88.421,0.47373501]
[1771103220960,11.30334994,88.47,88.431,0.47373501]
[1771103221558,0.46945388,88.467,88.433,0.47373501]
[1771103222161,11.30160595,88.483,88.433,0.47373501]
[1771103222363,7.16844869,88.48,88.441,0.47373501]
[1771103222566,0.46945388,88.494,88.451,0.47373501]
[1771103222955,0.46945388,88.489,88.451,0.47373501]
[1771103223461,11.30040054,88.493,88.435,0.47373501]
[1771103223462,7.16844869,88.47,88.435,0.47373501]
[1771103223668,7.16844869,88.46,88.435,0.47373501]
[1771103223860,7.16844869,88.46,88.436,0.47373501]
[1771103224054,0.46945388,88.467,88.436,0.47373501]
[1771103224260,11.30352217,88.468,88.437,0.47373501]
[1771103224460,56.50077656,88.495,88.436,11.30761228]
[1771103224461,7.16844869,88.48,88.44,7.16844869]
[1771103224654,11.30211688,88.479,88.441,0.47373501]
[1771103225162,0.46945388,88.478,88.441,0.47373501]
[1771103225369,0.46945388,88.469,88.441,0.47373501]
[1771103225664,7.16844869,88.46,88.428,0.47373501]
[1771103225854,0.46945388,88.459,88.43,0.47373501]
[1771103226450,0.46945388,88.467,88.43,0.47373501]
[1771103227672,0.46945388,88.459,88.424,11.30906303]
[1771103227874,7.16844869,88.45,88.425,0.47373501]
[1771103228177,0.46945388,88.459,88.425,11.78275395]
[1771103228380,0.46945388,88.459,88.426,0.47373501]
[1771103228944,62.10945388,88.459,88.426,0.47373501]
[1771103229286,0.46945388,88.458,88.426,0.47373501]
[1771103230272,11.77438169,88.457,88.426,0.47373501]
[1771103230568,0.46945388,88.456,88.426,0.47373501]
[1771103231759,7.16844869,88.45,88.426,0.47373501]
[1771103232469,11.30595032,88.449,88.426,0.47373501]
[1771103233676,0.49752238,88.439,88.404,0.4806478]
[1771103233876,0.49752238,88.429,88.404,0.4806478]
[1771103234066,7.16844869,88.43,88.404,0.4806478]
[1771103234369,7.16844869,88.44,88.404,0.4806478]
[1771103234570,11.30722871,88.439,88.406,0.4806478]
[1771103234785,11.80475109,88.439,88.406,0.4806478]
[1771103235355,0.49752238,88.438,88.405,10.79222519]
[1771103236772,62.13752238,88.447,88.401,39.59231229]
[1771103236995,11.3063338,88.446,88.401,39.59231229]
[1771103237294,0.49752238,88.445,88.402,0.4806478]
[1771103238887,0.49752238,88.443,88.404,0.4806478]
[1771103239094,61.64,88.447,88.421,0.4806478]
[1771103239587,62.13752238,88.447,88.421,0.4806478]
[1771103239757,0.49752238,88.445,88.414,0.4806478]
[1771103239958,0.49752238,88.429,88.391,0.4806478]
[1771103240160,0.49752238,88.419,88.391,11.7940168]
[1771103240389,0.49752238,88.419,88.391,11.313369]
[1771103240956,0.49752238,88.417,88.384,11.31426502]
[1771103241384,0.49752238,88.417,88.385,0.4806478]
[1771103242582,0.49752238,88.424,88.385,0.4806478]
[1771103243481,11.30927473,88.423,88.391,0.4806478]
[1771103243884,11.80679711,88.423,88.391,0.4806478]
[1771103244570,0.49752238,88.422,88.391,0.4806478]
[1771103245685,0.49752238,88.422,88.393,0.4806478]
[1771103245885,0.49752238,88.42,88.393,0.4806478]
[1771103247287,0.49752238,88.42,88.392,11.31324101]
[1771103247288,7.17430871,88.44,88.401,0.4806478]
[1771103247476,0.49752238,88.448,88.412,11.3106818]
[1771103247681,0.49752238,88.448,88.413,0.4806478]
[1771103248082,0.49752238,88.448,88.421,0.4806478]
[1771103249292,0.49752238,88.439,88.409,11.31106561]
[1771103249584,0.49752238,88.439,88.41,0.4806478]
[1771103249789,0.49752238,88.429,88.404,11.31170535]
[1771103251388,61.66,88.433,88.401,0.4806478]
[1771103253087,61.66,88.433,88.403,0.4806478]
[1771103253466,61.66,88.433,88.411,0.4806478]
[1771103254773,0.49752238,88.444,88.411,0.4806478]
[1771103254970,0.49752238,88.444,88.413,0.4806478]
[1771103255276,0.49752238,88.461,88.421,0.4806478]
[1771103256480,0.49752238,88.461,88.431,0.4806478]
[1771103257196,0.49752238,88.461,88.43,7.17430871]
[1771103257492,0.49752238,88.46,88.431,0.4806478]
[1771103258490,0.49752238,88.459,88.42,7.17430871]
[1771103258694,0.49752238,88.449,88.416,11.3101701]
[1771103259091,0.49752238,88.439,88.411,11.31076551]
[1771103260092,0.458007,88.429,88.403,11.31181741]
[1771103260679,0.458007,88.427,88.4,7.17430871]
[1771103260880,0.458007,88.427,88.401,11.31208922]
[1771103261993,61.64,88.433,88.402,0.48002725]
[1771103262191,62.098007,88.433,88.402,0.48002725]
[1771103262394,73.40601393,88.433,88.402,0.48002725]
[1771103263595,0.48443942,88.432,88.393,0.46869406]
[1771103263979,0.48443942,88.432,88.4,7.17430871]
[1771103264174,0.48443942,88.432,88.393,0.46869406]
[1771103264379,0.48443942,88.429,88.393,0.46869406]
[1771103265495,0.48443942,88.429,88.39,7.17430871]
[1771103265800,0.48443942,88.417,88.381,11.31464907]
[1771103265993,0.48443942,88.415,88.381,11.31464907]
[1771103266976,61.66,88.416,88.382,0.46869406]
[1771103267180,61.66,88.416,88.4,7.17430871]
[1771103267488,61.66,88.416,88.398,0.46869406]
[1771103267803,0.48443942,88.43,88.401,0.46869406]
[1771103267985,61.66,88.429,88.401,0.46869406]
[1771103268500,0.48443942,88.428,88.401,0.46869406]
[1771103269602,61.66,88.429,88.411,0.46869406]
[1771103269808,0.48443942,88.436,88.411,0.46869406]
[1771103269809,11.30774014,88.435,88.411,0.46869406]
[1771103270185,0.48443942,88.434,88.403,0.46869406]
[1771103272302,7.17016479,88.42,88.379,11.31490512]
[1771103272502,0.48443942,88.419,88.379,11.31490512]
[1771103272687,0.48443942,88.417,88.379,11.31490512]
[1771103273187,0.48443942,88.409,88.379,11.31490512]
[1771103273705,0.48443942,88.408,88.379,11.31490512]
[1771103274499,0.48443942,88.408,88.38,7.17016479]
[1771103274819,0.48443942,88.408,88.381,0.46869406]
[1771103275900,61.66,88.409,88.383,0.46869406]
[1771103277484,72.97117802,88.409,88.383,0.46869406]
[1771103278103,61.66,88.409,88.385,0.46869406]
[1771103279502,11.31119355,88.408,88.385,0.46869406]
[1771103280004,0.48443942,88.407,88.373,0.46869406]
[1771103280384,61.66,88.409,88.381,0.46869406]
[1771103280607,0.48443942,88.408,88.37,57.69922913]
[1771103281202,0.48443942,88.389,88.37,57.69922913]
[1771103281502,0.48443942,88.387,88.37,56.71858133]
[1771103281684,7.17016479,88.38,88.347,11.81894346]
[1771103281886,61.7,88.379,88.348,0.5]
[1771103282706,7.17016479,88.37,88.34,0.2]
[1771103282999,7.17016479,88.36,88.34,0.2]
[1771103283207,61.7,88.359,88.34,0.2]
[1771103283597,11.31759433,88.358,88.34,0.2]
[1771103283907,61.7,88.359,88.34,0.2]
[1771103283908,18.48622928,88.37,88.342,0.5]
[1771103284110,61.7,88.369,88.342,0.5]
[1771103286607,61.7,88.369,88.344,0.5]
[1771103287208,11.31490512,88.379,88.344,0.5]
[1771103287395,61.74,88.378,88.344,0.5]
[1771103287715,61.74,88.378,88.346,0.5]
[1771103289410,11.31516118,88.377,88.346,0.5]
[1771103289611,11.31516118,88.377,88.34,14.39215434]
[1771103289612,2.87237834,88.37,88.34,0.2]
[1771103289802,2.87237834,88.36,88.34,0.2]
[1771103289996,61.76,88.359,88.34,0.2]
[1771103290713,61.76,88.359,88.34,1e-08]
[1771103291317,2.87237834,88.35,88.32,0.2]
[1771103291518,2.87237834,88.34,88.32,0.2]
[1771103292600,61.82,88.339,88.32,0.2]
[1771103292803,2.87237834,88.34,88.321,0.5]
[1771103293001,61.82,88.339,88.321,0.5]
[1771103293316,11.31990038,88.34,88.321,0.5]
[1771103293624,18.50627391,88.34,88.32,0.2]
[1771103294610,11.31990038,88.34,88.311,0.5]
[1771103294817,7.18637353,88.33,88.311,0.5]
[1771103295113,18.50627391,88.34,88.311,0.5]
[1771103296213,7.18637353,88.33,88.311,0.5]
[1771103296413,7.18637353,88.32,88.3,20.76563979]
[1771103296720,61.84,88.319,88.301,0.5]
[1771103297899,61.84,88.322,88.301,0.5]
[1771103298197,11.3213101,88.329,88.301,0.5]
[1771103298407,61.84,88.328,88.301,0.5]
[1771103299920,11.32156645,88.327,88.301,0.5]
[1771103300916,39.62548257,88.327,88.3,20.76563979]
[1771103301422,39.62548257,88.327,88.3,21.26563979]
[1771103302708,61.98,88.326,88.3,21.26563979]
[1771103303522,0.49392,88.319,88.28,7.18637353]
[1771103303818,39.62548257,88.327,88.256,4.61729252]
[1771103303819,0.49392,88.289,88.256,11.33059909]
[1771103303999,62.02,88.288,88.256,11.33059909]
[1771103304195,0.49392,88.289,88.256,11.33059909]
[1771103304411,62.02,88.287,88.26,11.53015634]
[1771103304618,0.49392,88.286,88.26,0.2]
[1771103305003,62.02,88.285,88.26,0.2]
[1771103305403,7.18637353,88.28,88.26,0.2]
[1771103305618,0.49392,88.278,88.241,0.46905277]
[1771103305821,0.49392,88.276,88.241,0.46905277]
[1771103306021,39.6479264,88.277,88.24,0.2]
[1771103306022,0.49392,88.269,88.24,0.2]
[1771103306218,0.49392,88.259,88.225,0.46905277]
[1771103306398,0.49392,88.259,88.229,0.46905277]
[1771103306594,7.18637353,88.26,88.229,0.46905277]
[1771103306816,62.02,88.268,88.229,0.46905277]
[1771103307027,62.32,88.267,88.229,0.46905277]
[1771103307206,0.3,88.266,88.229,0.46905277]
[1771103307413,0.3,88.266,88.231,0.46905277]
[1771103307628,62.02,88.265,88.231,0.46905277]
[1771103308118,0.3,88.259,88.231,0.46905277]
[1771103308322,11.32964742,88.264,88.233,0.46905277]
[1771103309020,11.32964742,88.264,88.06,7.38637353]
[1771103309021,29.0,88.246,88.23,7.18637353]
[1771103309203,28.5,88.246,88.234,0.46905277]
[1771103309405,0.5,88.245,88.22,7.18637353]
[1771103309601,0.5,88.245,88.21,7.18637353]
[1771103310021,0.5,88.24,88.21,7.18637353]
[1771103310227,0.5,88.238,88.21,11.33650506]
[1771103310426,0.5,88.237,88.21,18.52287859]
[1771103310720,30.0,88.241,88.22,7.18637353]
[1771103310906,62.06,88.239,88.22,7.18637353]
[1771103311103,30.0,88.231,88.22,7.18637353]
[1771103313115,62.1,88.243,88.22,7.18637353]
[1771103313116,62.1,88.243,88.221,11.33516963]
[1771103314228,62.1,88.243,88.21,28.34145652]
[1771103314229,0.5,88.242,88.214,11.33600515]
[1771103315104,62.1,88.243,88.23,7.18637353]
[1771103315516,59.33661245,88.243,88.23,7.18637353]
[1771103315722,0.5,88.258,88.23,7.18637353]
[1771103315926,0.5,88.258,88.24,7.18637353]
[1771103316226,0.5,88.276,88.232,28.3343664]
[1771103316414,0.5,88.276,88.24,7.18637353]
[1771103316617,0.5,88.276,88.25,7.18637353]
[1771103317121,0.5,88.276,88.26,7.18637353]
[1771103317310,0.5,88.286,88.26,7.18637353]
[1771103317508,0.5,88.286,88.25,7.18637353]
[1771103317704,0.5,88.279,88.24,7.18637353]
[1771103319026,39.64747728,88.278,88.24,7.18637353]
[1771103319223,0.5,88.269,88.23,7.18637353]
[1771103319524,39.64747728,88.278,88.25,7.18637353]
[1771103319525,0.5,88.267,88.25,7.18637353]
[1771103321630,0.5,88.278,88.26,7.18637353]
[1771103322026,11.3274516,88.282,88.27,7.18637353]
[1771103322729,11.8274516,88.282,88.27,7.18637353]
[1771103322929,0.5,88.281,88.241,11.33260049]
[1771103323110,0.5,88.281,88.25,7.18637353]
[1771103323310,0.5,88.279,88.25,7.18637353]
[1771103323536,0.5,88.279,88.251,11.33131635]
[1771103324435,0.5,88.279,88.241,11.33260049]
[1771103324926,0.5,88.279,88.26,2.877531]
[1771103325536,11.32615278,88.292,88.261,11.33003251]
[1771103325832,0.5,88.296,88.27,2.877531]
[1771103326137,0.5,88.296,88.26,2.877531]
[1771103327528,0.5,88.294,88.261,11.33003251]
[1771103329713,0.5,88.292,88.261,11.33003251]
[1771103333631,11.32618273,88.291,88.261,11.33003251]
[1771103333931,11.32618273,88.291,88.27,2.87694679]
[1771103335027,0.5,88.292,88.27,2.87694679]
[1771103335435,0.5,88.307,88.28,2.87694679]
[1771103336125,0.5,88.306,88.28,2.87694679]
[1771103337238,0.5,88.306,88.29,2.87694679]
[1771103338117,0.5,88.314,88.29,2.87694679]
[1771103339013,11.32336122,88.313,88.29,2.87694679]
[1771103339220,0.5,88.312,88.29,2.87694679]
[1771103340236,0.5,88.312,88.3,2.87694679]
[1771103340443,0.5,88.319,88.29,2.87694679]
[1771103340637,0.5,88.319,88.274,39.64927384]
[1771103340638,0.5,88.326,88.3,2.87694679]
[1771103340846,0.5,88.339,88.32,2.87694679]
[1771103341046,0.5,88.339,88.287,46.96]
[1771103341047,0.5,88.339,88.277,4.61729252]
[1771103341250,0.5,88.339,88.25,3.37226254]
[1771103341251,0.48874775,88.309,88.264,0.49531575]
[1771103341421,0.48874775,88.309,88.265,0.49531575]
[1771103341622,0.48874775,88.309,88.271,0.49531575]
[1771103341937,0.48874775,88.309,88.281,0.49531575]
[1771103342138,30.0,88.32,88.264,39.65368831]
[1771103342139,30.0,88.32,88.291,0.49531575]
[1771103342545,30.48874775,88.32,88.291,0.49531575]
[1771103342743,30.0,88.32,88.293,0.49531575]
[1771103343043,30.0,88.32,88.267,4.61729252]
[1771103343044,30.0,88.32,88.301,11.32490005]
[1771103343235,0.48874775,88.331,88.302,0.49531575]
[1771103343621,0.48874775,88.329,88.302,0.49531575]
[1771103343823,0.48874775,88.329,88.295,11.32566963]
[1771103344017,0.48874775,88.329,88.296,0.49531575]
[1771103345639,0.48874775,88.346,88.301,0.49531575]
[1771103345844,0.48874775,88.344,88.301,0.49531575]
[1771103346339,0.48874775,88.344,88.32,2.87694679]
[1771103346646,0.48874775,88.36,88.321,0.49531575]
[1771103347641,0.48874775,88.358,88.323,0.49531575]
[1771103347836,0.48874775,88.358,88.317,11.32273351]
[1771103348237,0.48874775,88.358,88.317,11.81804926]
[1771103348427,11.31746624,88.359,88.306,46.86]
[1771103348428,0.48874775,88.349,88.306,58.18417601]
[1771103348834,0.48874775,88.349,88.307,0.49531575]
[1771103349832,0.48874775,88.347,88.309,0.49531575]
[1771103350832,0.48874775,88.347,88.306,46.86]
[1771103351031,0.48874775,88.339,88.306,46.86]
[1771103351644,0.48874775,88.339,88.301,11.32481807]
[1771103351961,0.48874775,88.337,88.301,11.32481807]
[1771103352131,0.48874775,88.337,88.302,0.49531575]
[1771103353246,0.48874775,88.337,88.303,11.32464355]
[1771103353450,0.46535433,88.35,88.311,0.45130774]
[1771103354545,0.46535433,88.349,88.304,0.45130774]
[1771103355439,0.46535433,88.347,88.305,11.7756948]
[1771103355640,0.46535433,88.347,88.305,11.32438706]
[1771103357044,0.46535433,88.345,88.301,11.32490005]
[1771103357243,0.46535433,88.345,88.301,11.77620779]
[1771103357437,0.46535433,88.345,88.301,11.32490005]
[1771103357643,0.46535433,88.345,88.302,0.45130774]
[1771103358540,0.46535433,88.345,88.31,2.87694679]
[1771103358745,0.46535433,88.345,88.311,0.45130774]
[1771103359140,0.46535433,88.343,88.312,11.32348944]
[1771103359355,0.46535433,88.343,88.311,0.45130774]
[1771103359658,0.46535433,88.343,88.312,0.45130774]
[1771103360744,0.46535433,88.341,88.314,0.45130774]
[1771103361436,0.46535433,88.348,88.321,0.45130774]
[1771103362339,0.46535433,88.348,88.322,11.32220737]
[1771103362662,0.46535433,88.348,88.323,0.45130774]
[1771103364459,0.46535433,88.356,88.331,0.45130774]
[1771103365859,0.46535433,88.354,88.331,0.45130774]
[1771103366043,0.46535433,88.354,88.325,0.45130774]
[1771103367061,11.78274523,88.36,88.331,0.45130774]
[1771103367371,0.46535433,88.37,88.341,0.45130774]
[1771103367864,0.46535433,88.37,88.343,0.45130774]
[1771103368462,0.46535433,88.376,88.343,0.45130774]
[1771103369556,0.46535433,88.374,88.343,0.45130774]
[1771103369958,0.46535433,88.374,88.345,0.45130774]
[1771103370541,0.46535433,88.374,88.339,0.45130774]
[1771103370747,0.46535433,88.374,88.34,0.45130774]
[1771103371347,0.46535433,88.369,88.34,0.45130774]
[1771103371546,11.31631359,88.368,88.333,0.45130774]
[1771103371849,0.46535433,88.367,88.333,0.45130774]
[1771103373765,0.46535433,88.359,88.331,11.32102836]
[1771103374065,11.31656972,88.366,88.325,46.68]
[1771103374066,0.46535433,88.349,88.325,46.68]
[1771103374266,0.46535433,88.349,88.321,11.3222842]
[1771103374468,2.87694679,88.34,88.312,11.77479022]
[1771103374661,0.46535433,88.339,88.312,11.77479022]
[1771103375256,0.46535433,88.339,88.313,0.45130774]
[1771103377855,0.46535433,88.339,88.305,0.45130774]
[1771103378056,0.46535433,88.337,88.305,0.45130774]
[1771103379173,0.46535433,88.337,88.307,0.45130774]
[1771103381068,11.32015667,88.338,88.309,0.46072197]
[1771103381271,11.31951597,88.343,88.309,0.46072197]
[1771103381470,11.80992694,88.343,88.309,0.46072197]
[1771103381679,0.49041097,88.342,88.309,0.46072197]
[1771103383954,0.49041097,88.342,88.308,11.32400235]
[1771103383955,0.45265491,88.339,88.31,11.32374589]
[1771103384179,0.45265491,88.339,88.311,0.45840099]
[1771103385864,0.45265491,88.339,88.312,11.32348944]
[1771103386176,11.31965941,88.342,88.313,0.45840099]
[1771103386672,0.45265491,88.352,88.313,0.45840099]
[1771103388278,0.45265491,88.352,88.315,0.45840099]
[1771103388467,11.77111535,88.352,88.315,0.45840099]
[1771103388670,0.45265491,88.351,88.315,0.45840099]
[1771103390487,0.45265491,88.351,88.321,0.45840099]
[1771103391780,61.98,88.378,88.313,0.45840099]
[1771103391781,0.45265491,88.349,88.313,0.45840099]
[1771103392180,0.45265491,88.349,88.311,11.3235276]
[1771103392577,0.45265491,88.347,88.308,0.45840099]
[1771103393086,0.45265491,88.347,88.31,2.87694679]
[1771103393669,0.45265491,88.345,88.309,11.32387412]
[1771103395681,11.31938784,88.344,88.31,2.8739994]
[1771103395887,0.45265491,88.343,88.31,2.8739994]
[1771103396086,0.45265491,88.343,88.309,11.32387412]
[1771103396482,0.45265491,88.343,88.309,11.78227511]
[1771103397270,0.45265491,88.343,88.31,0.45840099]
[1771103397681,0.45265491,88.363,88.322,0.45840099]
[1771103397886,0.45265491,88.387,88.351,0.45840099]
[1771103398080,0.45265491,88.387,88.35,2.8739994]
[1771103398289,0.45265491,88.387,88.35,3.33240039]
[1771103398593,0.45265491,88.387,88.351,0.45840099]
[1771103399688,11.314009,88.386,88.351,11.77685162]
[1771103399875,0.45265491,88.385,88.351,0.45840099]
[1771103400482,0.45265491,88.385,88.35,14.19261847]
[1771103400995,0.45265491,88.385,88.351,0.45840099]
[1771103401193,0.55265491,88.39,88.361,0.45840099]
[1771103401397,0.45265491,88.388,88.361,0.45840099]
[1771103401999,0.45265491,88.386,88.354,0.45840099]
[1771103402296,0.45265491,88.386,88.35,2.8739994]
[1771103402484,0.45265491,88.379,88.34,2.8739994]
[1771103402681,0.45265491,88.379,88.335,58.12049039]
[1771103403083,0.45265491,88.379,88.34,2.8739994]
[1771103403282,0.45265491,88.379,88.341,0.45840099]
[1771103403997,0.45265491,88.377,88.335,46.8]
[1771103404293,0.45265491,88.359,88.321,11.32231849]
[1771103404511,0.45265491,88.359,88.321,11.78071948]
[1771103404680,0.45265491,88.359,88.322,0.45840099]
[1771103405076,0.45265491,88.349,88.316,11.32293872]
[1771103406174,0.45265491,88.348,88.316,11.32293872]
[1771103406999,0.45265491,88.348,88.315,0.45840099]
[1771103407677,0.45265491,88.348,88.311,11.32355151]
[1771103407876,0.45265491,88.339,88.305,46.76]
[1771103408300,0.45265491,88.337,88.305,46.76]
[1771103409093,0.45265491,88.329,88.305,46.76]
[1771103409277,0.45265491,88.329,88.297,11.32537019]
[1771103410400,0.45265491,88.327,88.288,11.78496858]
[1771103410799,0.45265491,88.319,88.288,11.78496858]
[1771103412206,0.45265491,88.317,88.288,11.78496858]
[1771103413203,0.45265491,88.317,88.289,0.45199394]
[1771103413500,0.45265491,88.317,88.29,11.32631102]
[1771103415605,0.47088383,88.315,88.29,11.32631102]
[1771103415798,58.30359568,88.328,88.29,11.32631102]
[1771103415799,11.32156645,88.327,88.291,0.45199394]
[1771103416199,11.32156645,88.327,88.29,11.32631102]
[1771103416200,0.47088383,88.319,88.287,46.78]
[1771103416589,0.47088383,88.319,88.288,11.32656759]
[1771103418306,0.47088383,88.317,88.287,46.78]
[1771103418509,0.47088383,88.309,88.28,11.32750972]
[1771103420304,0.47088383,88.308,88.281,0.45199394]
[1771103422891,11.32413058,88.307,88.281,0.45199394]
[1771103423098,0.47088383,88.306,88.281,0.45199394]
[1771103423788,0.47088383,88.306,88.276,46.9]
[1771103423988,0.47088383,88.289,88.261,0.45199394]
[1771103425294,0.47088383,88.287,88.253,46.94]
[1771103425495,0.47088383,88.279,88.247,0.45199394]
[1771103427195,0.47088383,88.281,88.248,11.33170156]
[1771103427402,41.32656759,88.288,88.251,0.45199394]
[1771103427907,30.0,88.288,88.271,0.45199394]
[1771103428616,0.5,88.318,88.28,2.8739994]
[1771103428793,0.5,88.318,88.29,2.8739994]
[1771103429514,11.32284837,88.317,88.29,2.8739994]
[1771103429898,0.5,88.316,88.27,2.8739994]
[1771103430515,0.5,88.316,88.28,2.8739994]
[1771103431004,0.5,88.316,88.274,46.94]
[1771103431406,0.5,88.314,88.28,2.8739994]
[1771103433017,11.32310479,88.315,88.28,2.8739994]
[1771103433315,0.5,88.314,88.275,11.32823562]
[1771103433499,0.5,88.312,88.28,2.8739994]
[1771103434919,0.5,88.312,88.29,2.8739994]
[1771103435099,0.5,88.312,88.28,2.8739994]
[1771103435724,0.5,88.31,88.275,11.32823562]
[1771103438525,0.5,88.308,88.275,11.32823562]
[1771103440029,0.5,88.306,88.275,11.32823562]
[1771103443407,0.5,88.306,88.271,11.32874896]
[1771103444234,0.5,88.304,88.271,11.32874896]
[1771103444816,30.0,88.29,88.271,11.32874896]
[1771103446210,0.5,88.304,88.271,39.65062137]
[1771103449134,0.5,88.302,88.271,11.32874896]
[1771103449339,0.5,88.299,88.272,47.1]
[1771103449516,0.5,88.308,88.271,11.32874896]
[1771103449715,0.5,88.308,88.272,47.1]
[1771103450327,0.5,88.308,88.271,11.32874896]